Cogmind - Beta 15 @@@ ROGUE MODE // 2025.06.05 @ 01:27:37 Player: The Gourd Result: Destroyed by H-71 Marshal with Heavy Mass Driver Performance ------------- Evolutions (6) 3000 Regions Visited (19) 3800 Robots Destroyed (268) 1340 Value Destroyed (13635) 13635 Prototype IDs (29) 580 Alien Tech Used (0) 0 Bonus (8728) 8728 TOTAL SCORE: 31083 Bonus ------- High Alert Combat Kills 3031 Follower Combat Kills 3097 Entered Garrisons 800 Used RIF Installer 1500 Aligned with FarCom 300 Cogmind --------- Core Integrity 0/1150 Matter 99/300 Energy 42/100 System Corruption 6% Temperature Warm (125) Movement Core (50) Location -4/Factory Parts ------- > --- POWER (1) -------- (None) > --- PROPULSION (6) --- (None) > --- UTILITY (8) ------ (None) > --- WEAPON (4) ------- (None) > --- INVENTORY (5) ---- Advanced Shield Generator Long-range Tractor Beam Enhanced Coil Gun Heavy Gauss Cannon Peak State ------------ > --- POWER ------------ Light Antimatter Reactor > --- PROPULSION ------- Improved Medium Treads Improved Heavy Treads Improved Heavy Treads Biometal Medium Treads > --- UTILITY ---------- Cargo Storage Unit Experimental Sensor Array Advanced Signal Interpreter Relay Coupler [Swarmer] Relay Coupler [Duelist] Relay Coupler [Sentry] Relay Coupler [Hunter] > --- WEAPON ----------- Improved Heavy Machine Gun Fusion Bomb Launcher Improved Remote Datajack Axe > --- INVENTORY -------- Neutrino Core Light Particle Reactor Improved Treads Improved Heavy Treads Improved Heavy Treads Armored Heavy Treads Impulse Thruster Array High-capacity Matter Pod Layered Heavy Armor Plating Advanced Hacking Suite Relay Coupler [Grunt] Relay Coupler [Grunt] Relay Coupler [Grunt] Relay Coupler [Grunt] Relay Coupler [Brawler] Relay Coupler [Sentry] Relay Coupler [Demolisher] Relay Coupler [Hunter] Relay Coupler [Hunter] Mass Driver Heavy Gauss Cannon Fusion Bomb Launcher [Rating: 117] Favorites ----------- Power Light Deuterium Engine Engine Light Deuterium Engine Power Core Neutrino Core Reactor Light Particle Reactor Propulsion Light Treads Treads Light Treads Leg Potential Leg Wheel Armored Wheel Hover Unit Antigrav System Flight Unit Impulse Thruster Array Utility Large Storage Unit Device Experimental Sensor Array Storage Large Storage Unit Processor Improved Signal Interpreter Hackware Relay Coupler [Swarmer] Protection Light Armor Plating Weapon Improved Heavy Machine Gun Energy Cannon Advanced Beam Cannon Ballistic Gun Improved Heavy Machine Gun Ballistic Cannon Mass Driver Launcher Grenade Launcher Special Weapon Remote Datajack Impact Weapon Heavy Mace Slashing Weapon Axe Special Melee Weapon Improved Datajack Build | -11 -10 -10 -9 -9 -9 -8 -8 -8 -7 -7 -6 -5 -5 -5 -5 -5 -4 -4 -4 ------- Run | Yrd Mat Min Mat Min Exi Min Mat Gar Fac Gar Fac Fac Gar Fac Gar Fac Fac Was Fac Slots Evolved 12 | . . . 2 . . . 2 . 2 . 2 2 . . . . 2 . . Power . | . . . . . . . . . . . . . . . . . . . . Propulsion 4 | . . . 1 . . . . . 1 . 2 . . . . . . . . Utility 6 | . . . 1 . . . . . 1 . . 2 . . . . 2 . . Weapon 2 | . . . . . . . 2 . . . . . . . . . . . . Parts Attached 198 | 8 7 . 29 3 4 3 10 4 16 32 6 7 19 . 28 4 17 . 1 Power 18 | 2 . . 2 . . 1 1 2 1 2 . 1 3 . 1 1 1 . . Engine 9 | 2 . . 1 . . 1 1 1 1 . . 1 1 . . . . . . Core 5 | . . . 1 . . . . 1 . 2 . . 1 . . . . . . Reactor 4 | . . . . . . . . . . . . . 1 . 1 1 1 . . Propulsion 46 | 2 1 . 8 1 2 . 4 . 4 6 1 . 4 . 6 . 6 . 1 Treads 34 | 1 . . 6 1 . . 4 . 3 6 1 . 4 . 6 . 2 . . Leg 2 | . . . . . 2 . . . . . . . . . . . . . . Wheel 4 | 1 1 . 2 . . . . . . . . . . . . . . . . Hover 4 | . . . . . . . . . . . . . . . . . 3 . 1 Flight 2 | . . . . . . . . . 1 . . . . . . . 1 . . Utility 89 | 2 2 . 12 1 2 1 4 1 6 21 3 2 7 . 19 . 6 . . Device 12 | 1 . . 2 . 1 . . . . 7 . 1 . . . . . . . Storage 11 | 1 1 . 1 1 . 1 1 1 1 2 . . . . 1 . . . . Processor 7 | . . . 1 . 1 . . . 1 3 . . . . . . 1 . . Hackware 45 | . . . . . . . . . 4 8 3 1 6 . 18 . 5 . . Protection 14 | . 1 . 8 . . . 3 . . 1 . . 1 . . . . . . Artifact . | . . . . . . . . . . . . . . . . . . . . Weapon 45 | 2 4 . 7 1 . 1 1 1 5 3 2 4 5 . 2 3 4 . . Energy Gun . | . . . . . . . . . . . . . . . . . . . . Energy Cannon 2 | . . . 1 . . . . . . . . 1 . . . . . . . Ballistic Gun 18 | 2 1 . 3 1 . 1 1 . 4 . . 2 3 . . . . . . Ballistic Cannon 4 | . . . . . . . . . . . . . . . 1 1 2 . . Launcher 6 | . 1 . 1 . . . . . . 1 1 . . . . 1 1 . . Special Weapon 8 | . 1 . . . . . . . . 2 1 1 1 . 1 1 . . . Impact Weapon 3 | . . . 2 . . . . . . . . . . . . . 1 . . Slashing Weapon 3 | . 1 . . . . . . 1 . . . . 1 . . . . . . Piercing Weapon . | . . . . . . . . . . . . . . . . . . . . Special Melee Weapon 1 | . . . . . . . . . 1 . . . . . . . . . . Unidentified Prototypes 5 | . . . 1 . . . . . 2 1 . 1 . . . . . . . Parts Lost 48 | . . . . 5 . . 1 . 2 2 4 2 9 . 3 2 13 . 5 Power 6 | . . . . . . . 1 . . . . 1 1 . . 1 1 . 1 Propulsion 15 | . . . . 1 . . . . . 1 . . 4 . 1 . 5 . 3 Utility 9 | . . . . 2 . . . . 2 1 . . 1 . . . 2 . 1 Weapon 18 | . . . . 2 . . . . . . 4 1 3 . 2 1 5 . . Highest Loss Streak 9 | . . . . 3 . . 1 . 2 1 3 1 3 . 1 2 9 . 5 To Critical Strikes . | . . . . . . . . . . . . . . . . . . . . Average Backups 18 | 7 12 15 14 13 12 11 14 15 16 19 23 21 27 29 25 24 16 1 2 Power 1 | . 1 1 . . . . . . 1 1 1 1 2 4 3 2 1 . . Propulsion 2 | 1 3 4 2 1 1 2 1 . . 1 4 5 3 4 5 5 3 . . Utility 9 | 2 3 4 6 7 6 4 6 8 9 10 12 11 16 19 15 14 9 . 1 Weapon 3 | 1 5 6 6 5 5 4 5 3 3 2 1 . 2 . . 1 1 1 1 Tool/Special . | . . . . . . . . . . . . . . . . . . . . Unused Backups 51 | 3 4 1 2 . 1 . 3 6 . 5 . . 5 . 5 3 10 . 3 Power 5 | . . . . . . . . . . 3 . . 2 . . . . . . Propulsion 6 | . 2 . . . . . 1 . . . . . . . . 1 2 . . Utility 32 | 3 . 1 1 . 1 . 1 4 . 2 . . 2 . 5 2 8 . 2 Weapon 8 | . 2 . 1 . . . 1 2 . . . . 1 . . . . . 1 Tool/Special . | . . . . . . . . . . . . . . . . . . . . Average Slot Usage (%) 83 | . 99 100 98 84 78 100 71 71 80 93 65 61 83 88 82 81 63 21 19 Engine 5 | . 14 14 6 11 11 11 8 7 7 3 . 1 1 . . . . . . Core 1 | . . . 4 . . . . 1 . 3 5 2 1 . . . . . . Reactor 1 | . . . . . . . . . . . . . 2 5 5 4 4 5 4 Treads 17 | . 13 14 21 22 20 11 9 9 13 14 19 17 26 29 27 23 15 . . Leg 6 | . . . . . 3 22 18 18 15 12 . . . . . . . . . Wheel 3 | . 14 14 11 11 9 . . . . . . . . . . . . . . Device 1 | . 8 . 3 . 1 5 . . 4 . 2 1 1 . . . 3 . . Storage 8 | . 14 14 11 15 20 16 9 9 7 7 6 5 5 5 5 5 3 . . Hackware 8 | . . . . . . . . . 6 15 9 16 16 17 21 23 14 5 3 Protection 7 | . 5 14 17 8 . . 15 18 2 3 . . 2 5 . . . . . Energy Cannon 1 | . . . 9 . . . . . . . . 4 . . . . . . . Ballistic Gun 10 | . 16 16 6 1 . 11 8 8 12 16 1 2 17 17 10 5 3 . . Launcher 2 | . 4 11 2 13 11 11 . . . . 5 . . . . 1 3 . . Special Weapon 2 | . . . . . . . . . . 6 4 4 2 . 4 4 3 . . Impact Weapon 1 | . . . 3 . . . . . . 5 6 . . . . . . . . Slashing Weapon 1 | . 6 . . . . . . . . . . . 1 5 3 5 3 . . Peak Build Rating 117 | 7 10 10 19 17 42 44 72 73 86 79 88 107 109 92 105 103 117 23 32 Average Rating 59 | 6 8 9 16 13 17 39 70 69 73 67 79 88 91 91 96 101 89 23 22 On Entrance 51 | . 7 10 10 16 13 42 36 72 73 72 65 72 107 92 92 100 102 23 23 Naked Turns 5 | . . . . . . . . . . . . . . . . . 4 . 1 Heaviest Build 305 | 14 32 33 44 40 32 32 58 78 79 209 169 175 188 180 305 177 176 14 14 Greatest Support 237 | 10 12 12 20 12 60 60 60 60 60 162 237 225 225 183 215 215 225 22 34 Greatest Overweight (x) 3 | 1 3 2 3 3 2 . 2 3 2 3 . . 1 . 2 . . . . Average Overweight (x) . | . 2 2 2 2 1 . . . 1 . . . . . . . . . . Largest Inventory Capacity 30 | 8 15 15 15 15 15 15 15 20 20 30 30 30 30 30 30 30 30 5 5 Average Capacity 20 | 7 14 15 15 15 15 15 15 17 20 20 30 30 30 30 30 30 23 5 5 Most Carried 30 | 8 15 15 15 15 15 15 15 20 20 30 28 28 30 30 30 30 28 1 4 Average Carried 19 | 7 12 14 14 13 13 14 14 15 17 19 25 23 28 29 29 29 20 1 2 Final Capacity 30 | 8 15 15 15 15 15 15 15 20 20 30 30 30 30 30 30 30 5 5 5 Final Carried 30 | 7 15 15 15 13 15 15 15 17 18 30 24 28 30 30 30 29 1 1 4 Class Distribution -------------------- 32% | Bothacker-Tank 23% | Mutant 11% | Tank 8% | Scavenger-Mutant 8% | Bothacker-Mutant 7% | Bothacker-Gunner 4% | Bothacker-Skirmisher Dominant Class ---------------- Mutant | -10/Materials Mutant | -10/Mines Scavenger-Mutant | -9/Materials Mutant | -9/Mines Mutant | -9/Exiles Mutant | -8/Mines Tank | -8/Materials Tank | -8/Garrison Bothacker-Skirmisher | -7/Factory Bothacker-Gunner | -7/Garrison Bothacker-Mutant | -6/Factory Bothacker-Mutant | -5/Factory Bothacker-Tank | -5/Garrison Bothacker-Tank | -5/Factory Bothacker-Tank | -5/Garrison Bothacker-Tank | -5/Factory Bothacker-Skirmisher | -4/Factory Mutant | -4/Waste Mutant | -4/Factory Resources | -11 -10 -10 -9 -9 -9 -8 -8 -8 -7 -7 -6 -5 -5 -5 -5 -5 -4 -4 -4 ----------- Run | Yrd Mat Min Mat Min Exi Min Mat Gar Fac Gar Fac Fac Gar Fac Gar Fac Fac Was Fac Matter Collected 10162 | 354 207 191 982 232 . 172 902 1300 634 1355 358 63 1966 . 723 105 618 . . Remotely . | . . . . . . . . . . . . . . . . . . . . Salvage Created 10838 | 260 275 54 1494 305 . 147 1093 1644 574 1527 509 409 1244 . 738 227 338 . . Parts 574 | 27 20 7 94 25 . 10 68 63 25 79 15 24 48 . 27 7 35 . . Haulers Intercepted 1 | . . . . . . . 1 . . . . . . . . . . . . Recyclers Shooed 2 | . . . . . . . . . . . . . . . . 2 . . . Parts Field Recycled . | . . . . . . . . . . . . . . . . . . . . Retrieved Matter . | . . . . . . . . . . . . . . . . . . . . Parts Self-Destructed . | . . . . . . . . . . . . . . . . . . . . Prevented . | . . . . . . . . . . . . . . . . . . . . Kills | -11 -10 -10 -9 -9 -9 -8 -8 -8 -7 -7 -6 -5 -5 -5 -5 -5 -4 -4 -4 ------- Run | Yrd Mat Min Mat Min Exi Min Mat Gar Fac Gar Fac Fac Gar Fac Gar Fac Fac Was Fac Combat Hostiles Destroyed 216 | . 15 6 40 12 . 4 22 28 12 18 13 10 21 . 2 3 10 . . Melee 7 | . . . . . . . . . . . 2 5 . . . . . . . Guns 121 | . 7 3 6 1 . . 22 28 12 18 1 . 21 . 2 . . . . Cannons 32 | . . . 28 2 . . . . . . . 2 . . . . . . . AOE 55 | . 8 3 6 9 . 4 . . . . 10 2 . . . 3 10 . . Classes Destroyed 22 | 2 2 . 5 4 . 1 2 1 1 . 1 . 1 . . 1 1 . . Worker 9 | . . . . 5 . . 1 . . . . . . . . . 3 . . Builder 10 | . . . . 1 . . 1 . . . . 1 . . . 1 6 . . Tunneler 12 | 8 . . 1 . . 3 . . . . . . . . . . . . . Hauler 1 | . . . . . . . 1 . . . . . . . . . . . . Recycler 5 | 1 . . . 2 . . 1 . . . . . . . . 1 . . . Mechanic 1 | . . . 1 . . . . . . . . . . . . . . . . Operator 2 | . . . 2 . . . . . . . . . . . . . . . . Watcher 9 | . . . 4 . . . 2 1 . . . . . . . . 2 . . Swarmer 54 | . 6 6 11 4 . . 8 2 4 4 . 2 1 . 2 . 4 . . Cutter 2 | . . . . . . . . 2 . . . . . . . . . . . Grunt 109 | . 9 . 19 2 . 2 7 20 4 9 12 5 15 . . 1 4 . . Brawler 5 | . . . 1 . . 1 . . 1 . . . 2 . . . . . . Duelist 5 | . . . . . . . 1 1 . . 2 . 1 . . . . . . Protector 1 | . . . . . . . . . . . 1 . . . . . . . . Sentry 20 | . . . 9 . . . 6 2 1 1 . . 1 . . . . . . Demolisher 2 | . . . . 2 . . . . . . . . . . . . . . . Specialist 2 | . . . . . . . . . . . . . . . . 2 . . . Hunter 7 | . . . . . . 1 . 1 . 1 . 1 . . . . 3 . . Programmer 9 | . . . . . . . . . 2 3 1 2 1 . . . . . . Heavy 1 | . . . . . . . . . . . . . . . . . 1 . . Behemoth 1 | . . . . . . . . . . . . . 1 . . . . . . Assembled 4 | . . . . 4 . . . . . . . . . . . . . . . Guerrilla 1 | . . . . . . . . . 1 . . . . . . . . . . Best Kill Streak 17 | 2 3 3 6 9 . 4 4 4 5 4 5 3 3 . 2 4 17 . . Combat Bots Only 5 | . 3 3 4 4 . 3 4 4 5 4 5 2 3 . 2 2 4 . . Max Kills in Single Turn 4 | 1 2 2 4 4 . 2 2 1 2 2 2 2 2 . 2 2 4 . . Gunslinging 1 | . . . . . . . . . 1 1 . . 1 . . . . . . Exploded 4 | . 2 2 3 2 . 2 . . . . 2 1 . . . 1 4 . . Melee 1 | . . . . . . . . . . . 1 1 . . . . . . . Uniques/NPCs Destroyed . | . . . . . . . . . . . . . . . . . . . . Combat | -11 -10 -10 -9 -9 -9 -8 -8 -8 -7 -7 -6 -5 -5 -5 -5 -5 -4 -4 -4 -------- Run | Yrd Mat Min Mat Min Exi Min Mat Gar Fac Gar Fac Fac Gar Fac Gar Fac Fac Was Fac Hostile Shots Fired 1170 | . 37 10 118 32 . 9 33 26 79 129 106 92 197 . 36 38 190 . 38 Missed 356 | . 11 5 34 5 . 5 14 4 25 30 30 26 44 . 8 19 76 . 20 Hits 814 | . 26 5 84 27 . 4 19 22 54 99 76 66 153 . 28 19 114 . 18 Melee 4 | . . . . . . . . . 3 . 1 . . . . . . . . Projectile 810 | . 26 5 84 27 . 4 19 22 51 99 75 66 153 . 28 19 114 . 18 AOE 18 | . . . . 15 . . . 2 . . . . . . . 1 . . . Critical Strikes 45 | . 1 . 1 . . . 1 3 3 4 3 4 11 . 1 2 10 . 1 Part Disruptions 1 | . . . . . . . . . . . . . 1 . . . . . . Damage Taken 15150 | . 324 54 928 920 . 97 208 396 782 1362 1430 989 3191 . 670 503 2855 . 441 Core 2222 | . 46 7 97 77 . 11 13 . 104 120 130 127 268 . 24 27 868 . 303 Absorbed by Shields 103 | . . . . . . . . . . . . . 84 . 19 . . . . Reduced by Siege Mode 141 | . . . . . . . . . . . 77 . 59 . . . 5 . . Ignored by Resistances 126 | . . . . . . . 11 14 . . . . 101 . . . . . . Regen/Repaired (Parts) 717 | . 64 . 107 . . . . . . . 546 . . . . . . . . Core Remaining (%) 76 | 100 . 78 . . . 53 . 97 . 68 84 . . . . 55 . . . Volleys Fired 720 | 21 36 7 80 21 . 8 50 76 37 152 26 16 105 . 35 11 39 . . Largest 4 | 2 1 2 2 2 . 2 1 1 4 3 1 3 4 . 2 1 1 . . Hottest 111 | 40 100 50 91 91 . 53 60 60 80 60 36 111 60 . 30 52 52 . . Shots Fired 1233 | 42 36 8 148 34 . 16 50 76 106 255 26 25 302 . 57 13 39 . . Gun 959 | 42 20 6 65 10 . 8 50 76 106 239 2 7 281 . 41 4 2 . . Cannon 97 | . . . 71 8 . . . . . . . 15 . . . . 3 . . Launcher 99 | . 14 2 12 16 . 8 . . . . 19 . . . . 4 24 . . Special 78 | . 2 . . . . . . . . 16 5 3 21 . 16 5 10 . . Kinetic 962 | 42 20 6 65 10 . 8 50 76 106 239 2 7 281 . 41 4 5 . . Thermal 81 | . 2 . 71 8 . . . . . . . . . . . . . . . Explosive 99 | . 14 2 12 16 . 8 . . . . 19 . . . . 4 24 . . Electromagnetic 15 | . . . . . . . . . . . . 15 . . . . . . . Robot Hit Streak 82 | 10 10 2 21 24 . 3 15 10 11 77 82 5 19 . 9 5 7 . . Robot Miss Streak 9 | 3 2 2 4 2 . 4 9 6 4 4 2 3 3 . 4 2 1 . . Penetration Max . | . . . . . . . . . . . . . . . . . . . . Secondary Targets 14 | . . . . . . . . . 2 6 . . 5 . 1 . . . . Max Gunslinging Chain 2 | . . . . . . . . . 1 2 . . 1 . 1 . . . . Shots Hit Robots 881 | 25 28 4 90 17 . 7 41 87 68 172 18 14 210 . 71 9 20 . . Core Hits 547 | 15 25 6 63 29 . 14 35 66 25 67 54 8 76 . 17 6 41 . . Critical Kills . | . . . . . . . . . . . . . . . . . . . . Critical Parts Destroyed 3 | . . . . 1 . . . . . . . . 1 . 1 . . . . Critical Strikes 10 | . . . . 1 . . . 6 . . . . 1 . 1 . 1 . . Destroy 3 | . . . . 1 . . . . . . . . 1 . 1 . . . . Blast 1 | . . . . . . . . . . . . . . . . . 1 . . Sever 6 | . . . . . . . . 6 . . . . . . . . . . . Melee Attacks 109 | . 10 . 8 . . . . 27 1 6 1 . 9 . 39 . 8 . . Impact 22 | . . . 8 . . . . 5 . 6 1 . . . . . 2 . . Slashing 86 | . 10 . . . . . . 22 . . . . 9 . 39 . 6 . . Piercing . | . . . . . . . . . . . . . . . . . . . . Sneak Attacks 2 | . 2 . . . . . . . . . . . . . . . . . . Combat Hostiles . | . . . . . . . . . . . . . . . . . . . . Follow-up Attacks . | . . . . . . . . . . . . . . . . . . . . Damage Inflicted 31100 | 291 1244 200 2542 1136 . 473 2074 3796 1717 3265 2155 857 4553 . 3123 594 3080 . . Guns 16674 | 291 209 47 501 122 . 58 2028 3284 1717 3265 43 57 4471 . 489 68 24 . . Cannons 1621 | . . . 1143 100 . . . . . . . 348 . . . . 30 . . Explosions 8989 | . 920 153 834 914 . 415 . . . . 2046 155 . . . 526 3026 . . Melee 3404 | . 115 . 61 . . . . 512 . . . . 82 . 2634 . . . . Ramming 412 | . . . 3 . . . 46 . . . 66 297 . . . . . . . Kinetic 16704 | 291 209 47 501 122 . 58 2028 3284 1717 3265 43 57 4471 . 489 68 54 . . Thermal 1532 | . . . 1143 196 . . . . . . 38 155 . . . . . . . Explosive 8700 | . 920 153 834 818 . 415 . . . . 2008 . . . . 526 3026 . . Electromagnetic 348 | . . . . . . . . . . . . 348 . . . . . . . Impact 61 | . . . 61 . . . . . . . . . . . . . . . . Slashing 3343 | . 115 . . . . . . 512 . . . . 82 . 2634 . . . . Piercing . | . . . . . . . . . . . . . . . . . . . . Highest Corruption 8 | . 1 1 . . . . . . 4 5 . 3 7 7 7 8 1 6 6 Average Corruption 5 | . 1 1 . . . . . . 4 4 . 2 6 7 7 7 1 4 6 Corruption Purged . | . . . . . . . . . . . . . . . . . . . . Corruption Blocked . | . . . . . . . . . . . . . . . . . . . . Effects 326 | . 11 4 . . . . . . 9 96 . 11 91 2 80 16 . 2 4 Message Errors 77 | . 1 . . . . . . . 2 26 . 4 17 1 19 6 . 1 . Matter Fused 88 | . 4 1 . . . . . . 1 21 . 2 32 . 21 3 . 1 2 Heat Flow Errors 31 | . 2 . . . . . . . . 12 . . 11 . 5 . . . 1 Energy Discharges 31 | . 2 1 . . . . . . 2 5 . 2 12 . 6 . . . 1 Parts Rejected 2 | . . . . . . . . . . . . . 1 . 1 . . . . Parts Fused 3 | . . . . . . . . . . . . . 1 . 2 . . . . Data Loss (minor) 36 | . 1 2 . . . . . . 2 11 . 2 6 1 7 4 . . . Data Loss (major) 19 | . 1 . . . . . . . . 6 . . 2 . 10 . . . . Misfires 21 | . . . . . . . . . . 5 . . 7 . 7 2 . . . Alerts 9 | . . . . . . . . . 1 3 . . 2 . 2 1 . . . Weapon Failures 9 | . . . . . . . . . 1 7 . 1 . . . . . . . Overload Shots . | . . . . . . . . . . . . . . . . . . . . Overflow Damage 490 | . 101 . 44 8 . 10 16 . . . 9 40 . . 56 31 175 . . Projectiles . | . . . . . . . . . . . . . . . . . . . . Explosions 314 | . 36 . 5 8 . 10 . . . . 9 40 . . . 31 175 . . Melee 176 | . 65 . 39 . . . 16 . . . . . . . 56 . . . . Knockbacks 2 | . . . . . . . . . . . 1 1 . . . . . . . Impact 2 | . . . . . . . . . . . 1 1 . . . . . . . Kinetic . | . . . . . . . . . . . . . . . . . . . . Secondary . | . . . . . . . . . . . . . . . . . . . . Self-Inflicted Damage 671 | . 36 11 27 134 . 40 . . . . 182 . . . . . 241 . . Shots 19 | . 2 1 2 4 . 2 . . . . 4 . . . . . 4 . . Rammed 29 | . . . 1 . . . . . . . 4 24 . . . . . . . Targets Rammed 36 | . . . 1 . . . 1 . . . 5 29 . . . . . . . Kicked 1 | . . . . . . . 1 . . . . . . . . . . . . Crushed 6 | . . . . . . . . . . . 1 5 . . . . . . . Highest Temperature 452 | . 261 . 315 174 . 16 378 441 452 307 33 80 273 . 233 . 29 . 125 Average Temperature 97 | . 65 . 91 67 . 8 102 117 155 100 12 34 65 . 97 . 7 . 125 Received Heat Transfer 3509 | . 150 . 300 39 . 9 81 198 300 294 454 144 1022 . 176 48 294 . . Effects 12 | . . . 3 . . . . 5 1 3 . . . . . . . . . Shutdowns 2 | . . . . . . . . 1 1 . . . . . . . . . . Energy Bleed 3 | . . . 1 . . . . 1 . 1 . . . . . . . . . Interference 6 | . . . 2 . . . . 2 . 2 . . . . . . . . . Matter Decay 1 | . . . . . . . . 1 . . . . . . . . . . . Siege Activations 4 | . . . . . . . . . . . 1 . 2 . . . 1 . . Total Turns 45 | . . . . . . . . . . . 21 . 20 . . . 4 . . Longest Duration 21 | . . . . . . . . . . . 21 . 19 . . . 4 . . Martial Activations . | . . . . . . . . . . . . . . . . . . . . Shielding Activations . | . . . . . . . . . . . . . . . . . . . . Robots Disrupted . | . . . . . . . . . . . . . . . . . . . . Combat Hostiles . | . . . . . . . . . . . . . . . . . . . . Robots Corrupted 3 | . . . 1 . . . 1 . . . . 1 . . . . . . . Combat Hostiles 1 | . . . . . . . . . . . . 1 . . . . . . . Parts Fried 4 | . . . 1 . . . . . . . . 3 . . . . . . . Impact Corruptions 3 | . . . 2 . . . 1 . . . . . . . . . . . . Robots Melted . | . . . . . . . . . . . . . . . . . . . . Combat Hostiles . | . . . . . . . . . . . . . . . . . . . . Parts Melted . | . . . . . . . . . . . . . . . . . . . . Heat Transferred 2557 | . . . 2072 285 . . . . . . 50 150 . . . . . . . Parts Sabotaged 2 | . . . . . . . . . . . 2 . . . . . . . . Parts Stolen . | . . . . . . . . . . . . . . . . . . . . Parts Stripped . | . . . . . . . . . . . . . . . . . . . . Power Chain Reactions 1 | . . . . . . . . . . . . 1 . . . . . . . Alert | -11 -10 -10 -9 -9 -9 -8 -8 -8 -7 -7 -6 -5 -5 -5 -5 -5 -4 -4 -4 ------- Run | Yrd Mat Min Mat Min Exi Min Mat Gar Fac Gar Fac Fac Gar Fac Gar Fac Fac Was Fac Maximum Alert Level 5 | . . . 2 1 . . 1 5 4 5 5 3 5 4 5 4 3 1 1 Low Security (%) 22 | 100 100 100 27 . . 100 71 6 . . . . . . . . . . 58 Level 1 8 | . . . 19 100 . . 28 12 . . . . . . . . 5 100 41 Level 2 14 | . . . 53 . . . . 12 . . . 64 11 . . . 79 . . Level 3 9 | . . . . . . . . 4 56 10 . 35 21 . 4 . 15 . . Level 4 21 | . . . . . . . . 13 43 39 90 . 32 100 24 100 . . . Level 5 23 | . . . . . . . . 49 . 50 9 . 34 . 71 . . . . High Security . | . . . . . . . . . . . . . . . . . . . . Max Security . | . . . . . . . . . . . . . . . . . . . . Peak Influence 2879 | 10 145 82 592 390 . 95 283 2365 1247 2879 1683 775 2854 1498 2775 1500 1029 358 222 Initial 1511 | . . 23 . 208 . . 15 150 1241 760 1511 737 508 1498 1036 1456 697 358 222 Average 1001 | . 67 19 332 310 . 25 152 1300 1086 1753 1507 693 1520 1481 1979 1419 623 343 185 Influence Increases 15195 | 45 554 159 1312 368 . 155 823 2255 439 2259 714 364 2576 32 1929 294 902 . 15 Destroy 0b10 Robot/C 5940 | . 300 120 820 160 . 80 440 740 320 480 380 240 980 . 580 100 200 . . Destroy 0b10 Robot/NC 360 | 45 . . 40 40 . 15 30 20 10 30 10 5 15 . 30 10 60 . . Destroy Leader 790 | . 50 20 218 30 . 20 106 40 62 . 70 30 60 . 50 10 24 . . Allied During Kill 762 | . . . 2 . . . . 133 20 29 52 7 249 . 238 17 15 . . Successful Hack 230 | . 38 . 39 . . . 13 7 10 14 18 14 7 . 30 26 14 . . Select Force Hacks 150 | . 60 . 30 . . . 30 . . . 30 . . . . . . . . Disable Machine 465 | . 15 . 30 15 . . 90 30 15 . 75 60 15 . . 45 75 . . Anti-Garrison Action 4750 | . . . . . . . . 1200 . 1600 . . 1050 . 900 . . . . Destroy Structure 1058 | . 61 19 58 123 . 40 54 25 2 16 79 8 185 32 56 56 244 . . Partial Spotted 30 | . . . . . . . . 15 . . . . 15 . . . . . . Lose Combat Pursuer 660 | . 30 . 75 . . . 60 45 . 90 . . . . 45 30 270 . 15 Influence Decreases 15078 | 45 493 220 777 631 272 114 633 121 1718 466 2086 1144 449 1406 634 1645 1303 705 216 Entered New Map 9158 | . . 38 . 327 272 . 26 81 1124 326 1368 770 219 1356 444 1319 727 665 96 Time Decay 4380 | 45 493 182 627 254 . 114 597 . 534 . 428 334 . 50 . 246 386 20 70 Lost Part 480 | . . . . 50 . . 10 . 20 20 40 20 90 . 30 20 130 . 50 Lost Ally 760 | . . . . . . . . 40 40 120 100 20 140 . 160 60 60 20 . Purge Threat 300 | . . . 150 . . . . . . . 150 . . . . . . . . Squads Dispatched 42 | . 4 . 7 1 . . 3 . 5 . 6 4 . . . 4 5 . 3 Investigation 13 | . 3 . 3 . . . 2 . . . 1 2 . . . . 1 . 1 Extermination 5 | . . . . . . . . . 2 . 2 1 . . . . . . . Reinforcement 14 | . 1 . 3 1 . . 1 . . . . 1 . . . 2 3 . 2 Assault 9 | . . . 1 . . . . . 2 . 3 . . . . 2 1 . . Garrison 1 | . . . . . . . . . 1 . . . . . . . . . . Intercept . | . . . . . . . . . . . . . . . . . . . . Searches Triggered . | . . . . . . . . . . . . . . . . . . . . Construction Impeded 5 | . . . . 1 . . 1 . . . . 1 . . . 1 1 . . Haulers Reinforced . | . . . . . . . . . . . . . . . . . . . . Active Scanning Responses . | . . . . . . . . . . . . . . . . . . . . Cargo Convoy Interrupts . | . . . . . . . . . . . . . . . . . . . . Stealth | -11 -10 -10 -9 -9 -9 -8 -8 -8 -7 -7 -6 -5 -5 -5 -5 -5 -4 -4 -4 --------- Run | Yrd Mat Min Mat Min Exi Min Mat Gar Fac Gar Fac Fac Gar Fac Gar Fac Fac Was Fac Distress Signals 20 | . 1 . 6 . . . 4 . . . . . 1 . . 2 6 . . Communications Jammed . | . . . . . . . . . . . . . . . . . . . . Distress Signals . | . . . . . . . . . . . . . . . . . . . . Times Spotted 477 | . 27 4 77 10 . 4 36 35 20 40 28 20 68 . 36 11 49 4 8 Peak Tracking Total 16 | . 4 3 7 2 . 3 6 3 5 8 9 5 7 . 4 3 16 4 8 Tactical Retreats 22 | . 1 . 4 1 . . 3 2 . 2 . . . . 3 1 4 . 1 Traps | -11 -10 -10 -9 -9 -9 -8 -8 -8 -7 -7 -6 -5 -5 -5 -5 -5 -4 -4 -4 ------- Run | Yrd Mat Min Mat Min Exi Min Mat Gar Fac Gar Fac Fac Gar Fac Gar Fac Fac Was Fac Traps Triggered 25 | . 1 . . . . . 1 7 . 6 . . 4 . 3 2 1 . . Indirectly . | . . . . . . . . . . . . . . . . . . . . Trap Hack Attempts . | . . . . . . . . . . . . . . . . . . . . Triggered . | . . . . . . . . . . . . . . . . . . . . Disarmed . | . . . . . . . . . . . . . . . . . . . . Reprogrammed . | . . . . . . . . . . . . . . . . . . . . Reused . | . . . . . . . . . . . . . . . . . . . . Traps Extracted . | . . . . . . . . . . . . . . . . . . . . Installed . | . . . . . . . . . . . . . . . . . . . . Triggered . | . . . . . . . . . . . . . . . . . . . . Machines | -11 -10 -10 -9 -9 -9 -8 -8 -8 -7 -7 -6 -5 -5 -5 -5 -5 -4 -4 -4 ---------- Run | Yrd Mat Min Mat Min Exi Min Mat Gar Fac Gar Fac Fac Gar Fac Gar Fac Fac Was Fac Machines Disabled 56 | . 1 . 2 1 . . 6 11 1 5 5 4 7 . 5 3 5 . . Max in Single Turn 2 | . 1 . 1 1 . . 1 2 . 1 1 . 1 . 1 2 2 . . Garrison Access 1 | . . . . . . . . . . . . . . . . 1 . . . Garrison Relay 22 | . . . . . . . . 7 . 4 . . 6 . 5 . . . . Machines Repaired . | . . . . . . . . . . . . . . . . . . . . Machines Dismantled . | . . . . . . . . . . . . . . . . . . . . Machines Sabotaged . | . . . . . . . . . . . . . . . . . . . . Overloaded Fab Kills . | . . . . . . . . . . . . . . . . . . . . Hacking | -11 -10 -10 -9 -9 -9 -8 -8 -8 -7 -7 -6 -5 -5 -5 -5 -5 -4 -4 -4 --------- Run | Yrd Mat Min Mat Min Exi Min Mat Gar Fac Gar Fac Fac Gar Fac Gar Fac Fac Was Fac Machines Accessed 72 | . 10 . 13 . 5 . 9 3 6 2 7 5 2 2 3 3 1 . 1 Terminals 44 | . 7 . 9 . . . 5 3 5 2 4 . 2 1 3 1 1 . 1 Fabricators 2 | . . . . . . . . . . . . 2 . . . . . . . Repair Stations 6 | . 1 . 1 . . . 1 . . . 2 1 . . . . . . . Recycling Units 5 | . 2 . 1 . . . 1 . . . 1 . . . . . . . . Scanalyzers 6 | . . . 2 . . . 1 . . . . 1 . . . 2 . . . Garrison Access 4 | . . . . . . . 1 . 1 . . 1 . 1 . . . . . Total Hacks 212 | . 29 . 39 . 50 . 16 6 13 5 20 11 3 2 7 5 4 . 2 Successful 137 | . 17 . 21 . 50 . 14 2 6 1 11 7 1 1 2 3 1 . . Failed 75 | . 12 . 18 . . . 2 4 7 4 9 4 2 1 5 2 3 . 2 Catastrophic 17 | . 1 . 3 . . . 1 1 2 1 . 3 . . 2 1 1 . 1 Database Lockouts . | . . . . . . . . . . . . . . . . . . . . Manual 90 | . 22 . 25 . 1 . 11 . 12 . 11 . . 1 . 1 4 . 2 Terminals 107 | . 20 . 24 . . . 10 6 12 5 12 . 3 1 7 1 4 . 2 Fabricators 7 | . . . . . . . . . . . . 7 . . . . . . . Repair Stations 22 | . 5 . 7 . . . 2 . . . 7 1 . . . . . . . Recycling Units 8 | . 4 . 2 . . . 1 . . . 1 . . . . . . . . Scanalyzers 14 | . . . 6 . . . 2 . . . . 2 . . . 4 . . . Garrison Access 4 | . . . . . . . 1 . 1 . . 1 . 1 . . . . . Terminal Hacks 65 | . 2 . 3 . 50 . 1 2 . 1 2 . 1 . 2 . 1 . . Record 49 | . . . . . 49 . . . . . . . . . . . . . . Robot Analysis 1 | . 1 . . . . . . . . . . . . . . . . . . Open Door 2 | . . . . . . . . 1 . . . . 1 . . . . . . Branch Access Points 2 | . . . . . . . . . . . 1 . . . . . 1 . . Emergency Access Points 1 | . . . . . . . . 1 . . . . . . . . . . . Terminal Index 3 | . 1 . 1 . . . 1 . . . . . . . . . . . . Unreport Threat 2 | . . . 1 . . . . . . . 1 . . . . . . . . Locate Traps 1 | . . . 1 . . . . . . . . . . . . . . . . Garrison Registry 1 | . . . . . . . . . . . . . . . 1 . . . . Security Stations 2 | . . . . . . . . . . 1 . . . . 1 . . . . Proto ID Catalog 1 | . . . . . 1 . . . . . . . . . . . . . . Fabricator Hacks 4 | . . . . . . . . . . . . 4 . . . . . . . Network Status 1 | . . . . . . . . . . . . 1 . . . . . . . Load Schematic 2 | . . . . . . . . . . . . 2 . . . . . . . Build 1 | . . . . . . . . . . . . 1 . . . . . . . Repair Station Hacks 17 | . 3 . 6 . . . 2 . . . 6 . . . . . . . . Scan Component 9 | . 2 . 3 . . . 1 . . . 3 . . . . . . . . Repair 8 | . 1 . 3 . . . 1 . . . 3 . . . . . . . . Recycling Unit Hacks . | . . . . . . . . . . . . . . . . . . . . Scanalyzer 10 | . . . 3 . . . 2 . . . . 2 . . . 3 . . . Insert Component 6 | . . . 2 . . . 1 . . . . 1 . . . 2 . . . Analyze 4 | . . . 1 . . . 1 . . . . 1 . . . 1 . . . Garrison Access Hacks 4 | . . . . . . . 1 . 1 . . 1 . 1 . . . . . Unlock Access 4 | . . . . . . . 1 . 1 . . 1 . 1 . . . . . Unauthorized Hacks 37 | . 12 . 9 . . . 8 . 5 . 3 . . . . . . . . Terminals 32 | . 10 . 8 . . . 7 . 5 . 2 . . . . . . . . Botnet 14 | . 4 . 3 . . . 2 . 4 . 1 . . . . . . . . Skim 17 | . 5 . 5 . . . 5 . 1 . 1 . . . . . . . . Sabotage 1 | . 1 . . . . . . . . . . . . . . . . . . Fabricators . | . . . . . . . . . . . . . . . . . . . . Repair Stations . | . . . . . . . . . . . . . . . . . . . . Recycling Units 5 | . 2 . 1 . . . 1 . . . 1 . . . . . . . . Tunnel 5 | . 2 . 1 . . . 1 . . . 1 . . . . . . . . Scanalyzers . | . . . . . . . . . . . . . . . . . . . . Garrison Access . | . . . . . . . . . . . . . . . . . . . . Data Cores Recovered . | . . . . . . . . . . . . . . . . . . . . Used . | . . . . . . . . . . . . . . . . . . . . Hacking Detections 59 | . 9 . 13 . . . 8 2 6 2 5 4 1 2 3 2 1 . 1 Full Trace Events 13 | . 2 . 2 . . . . 1 . 2 . 2 1 . 1 . 1 . 1 Feedback Events 3 | . . . . . . . . . . 1 . . . . . . 1 . 1 Corruption 1 | . . . . . . . . . . . . . . . . . 1 . . Hackware Fried 2 | . . . . . . . . . . 1 . . . . . . . . 1 Feedback Blocked . | . . . . . . . . . . . . . . . . . . . . Robot Schematics Acquired . | . . . . . . . . . . . . . . . . . . . . Robots Built . | . . . . . . . . . . . . . . . . . . . . Authchips . | . . . . . . . . . . . . . . . . . . . . Time . | . . . . . . . . . . . . . . . . . . . . Total Robot Build Rating . | . . . . . . . . . . . . . . . . . . . . Part Schematics Acquired 4 | . . . 1 . . . 1 . . . . 1 . . . 1 . . . Parts Built 1 | . . . . . . . . . . . . 1 . . . . . . . Authchips . | . . . . . . . . . . . . . . . . . . . . Time 102 | . . . . . . . . . . . . 102 . . . . . . . Total Part Build Rating 8 | . . . . . . . . . . . . 8 . . . . . . . Parts Repaired 7 | . 1 . 3 . . . . . . . 3 . . . . . . . . Time 502 | . 26 . 213 . . . 108 . . . 155 . . . . . . . . Parts Recycled . | . . . . . . . . . . . . . . . . . . . . Recycled Matter . | . . . . . . . . . . . . . . . . . . . . Retrieved Matter . | . . . . . . . . . . . . . . . . . . . . Retrieved Components . | . . . . . . . . . . . . . . . . . . . . Parts Scanalyzed 5 | . . . 1 . . . 1 . . . . 1 . . . 2 . . . Part Schematics Acquired 4 | . . . 1 . . . 1 . . . . 1 . . . 1 . . . Parts Damaged 1 | . . . 1 . . . . . . . . . . . . . . . . Bothacking | -11 -10 -10 -9 -9 -9 -8 -8 -8 -7 -7 -6 -5 -5 -5 -5 -5 -4 -4 -4 ------------ Run | Yrd Mat Min Mat Min Exi Min Mat Gar Fac Gar Fac Fac Gar Fac Gar Fac Fac Was Fac Used RIF Installer 3 | . . . . . . . . 1 . 1 . . . . 1 . . . . Coupler Efficiency 1 | . . . . . . . . . . . . . . . 1 . . . . Structural Interface 1 | . . . . . . . . . . 1 . . . . . . . . . Robots Hacked 52 | . . . . . . . . . 1 12 3 1 13 . 11 3 8 . . Non-combat . | . . . . . . . . . . . . . . . . . . . . Combat 52 | . . . . . . . . . 1 12 3 1 13 . 11 3 8 . . Robot Hacks Applied 52 | . . . . . . . . . 1 12 3 1 13 . 11 3 8 . . amplify_resonance 10 | . . . . . . . . . . 1 . 1 4 . 1 1 2 . . go_dormant 4 | . . . . . . . . . . 1 . . 2 . . . 1 . . streamctrl_high 9 | . . . . . . . . . . 2 2 . 3 . . . 2 . . formatsys_high 29 | . . . . . . . . . 1 8 1 . 4 . 10 2 3 . . Relay Couplers Released 89 | . . . . . . . . 29 . 16 . . 23 . 20 1 . . . Machine Destruction 89 | . . . . . . . . 29 . 16 . . 23 . 20 1 . . . Attached 41 | . . . . . . . . . 2 8 2 1 6 . 18 . 4 . . Fabnet Peak Effective % . | . . . . . . . . . . . . . . . . . . . . Robots Rewired 8 | . . . . . . . . 4 . . . . 4 . . . . . . Allies Hacked 1 | . . . . . . . . . . . . . . . 1 . . . . Hacks Repelled . | . . . . . . . . . . . . . . . . . . . . Allies | -11 -10 -10 -9 -9 -9 -8 -8 -8 -7 -7 -6 -5 -5 -5 -5 -5 -4 -4 -4 -------- Run | Yrd Mat Min Mat Min Exi Min Mat Gar Fac Gar Fac Fac Gar Fac Gar Fac Fac Was Fac Total Allies 53 | . . 1 . . . . . 4 1 10 5 2 12 . 10 2 5 1 . Largest Group 6 | . . 1 1 . . . . 4 3 3 3 2 6 3 5 4 2 1 . Highest-Rated Group 426 | . . 31 31 . . . . 119 86 53 62 77 426 282 350 226 94 46 . Highest-Rated Ally 148 | . . 31 31 . . . . 39 34 32 41 41 148 148 148 119 56 46 . Total Orders 20 | . . . . . . . . . 10 . 6 . . . 4 . . . . STAY 10 | . . . . . . . . . 5 . 3 . . . 2 . . . . FOLLOW 10 | . . . . . . . . . 5 . 3 . . . 2 . . . . Ally Attacks 385 | . . . 6 . . . . 38 23 22 45 20 119 . 68 17 16 11 . Total Damage 11478 | . . . 86 . . . . 327 603 547 998 586 4201 . 2924 452 429 325 . Kills 97 | . . . 1 . . . . 9 6 6 8 2 31 . 28 5 1 . . Allies Corrupted 5 | . . . . . . . . . 2 . 1 . . . 2 . . . . Allies Melted . | . . . . . . . . . . . . . . . . . . . . Field Lobotomies 5 | . . . . . . . . . . . 2 2 1 . . . . . . Intel | -11 -10 -10 -9 -9 -9 -8 -8 -8 -7 -7 -6 -5 -5 -5 -5 -5 -4 -4 -4 ------- Run | Yrd Mat Min Mat Min Exi Min Mat Gar Fac Gar Fac Fac Gar Fac Gar Fac Fac Was Fac Active Infowar (turns) 5396 | 1 934 . 1287 . 115 206 98 . 944 17 . 233 874 . . . 687 . . Sensors 3058 | . . . . . 114 206 . . 944 . . 233 874 . . . 687 . . Seismic 2321 | 1 934 . 1287 . 1 . 98 . . . . . . . . . . . . T.N.C. 17 | . . . . . . . . . . 17 . . . . . . . . . Robot Analysis Total 1 | . 1 . . . . . . . . . . . . . . . . . . Derelict Logs Recovered 2 | . . 2 . . . . . . . . . . . . . . . . . Drone Launches . | . . . . . . . . . . . . . . . . . . . . Drone Recoveries . | . . . . . . . . . . . . . . . . . . . . Exploration | -11 -10 -10 -9 -9 -9 -8 -8 -8 -7 -7 -6 -5 -5 -5 -5 -5 -4 -4 -4 ------------- Run | Yrd Mat Min Mat Min Exi Min Mat Gar Fac Gar Fac Fac Gar Fac Gar Fac Fac Was Fac Turns Passed 27725 | 517 1650 770 3695 548 860 447 2116 2965 1501 3628 1047 749 2821 110 2662 537 904 52 146 Spaces Moved 15448 | 288 998 603 2008 317 739 410 1264 1632 674 1541 461 380 1309 56 1439 282 702 90 255 Core 6 | 3 . . . . . . . . . . . . . . . . 2 . 1 Treads 5467 | . . . 129 . . . 1 236 67 788 461 380 1309 56 1439 282 319 . . Legs 4559 | . . . . . 130 410 1263 1396 607 753 . . . . . . . . . Wheels 4691 | 285 998 603 1879 317 609 . . . . . . . . . . . . . . Hover 470 | . . . . . . . . . . . . . . . . . 126 90 254 Flight 255 | . . . . . . . . . . . . . . . . . 255 . . Fastest Speed 45 | 50 95 120 120 120 90 90 45 90 90 90 160 160 160 162 156 156 45 56 50 Average Speed 140 | 93 117 120 137 120 114 90 89 144 184 205 160 160 166 162 160 156 97 56 55 Slowest Speed 410 | 95 125 120 240 135 170 90 320 400 250 410 160 160 242 162 315 156 160 56 60 Overloaded Moves 16 | . . . . . . . 16 . . . . . . . . . . . . Propulsion Burnouts . | . . . . . . . . . . . . . . . . . . . . Robots Hopped 2 | . . . . . . . . . . . . . . . . . 2 . . Potential Cave-ins 1 | . . . . 1 . . . . . . . . . . . . . . . Cave-ins Triggered . | . . . . . . . . . . . . . . . . . . . . Exploration Rate (%) 54 | 7 94 99 95 22 93 79 76 86 12 97 9 11 99 1 88 9 21 81 8 Regions Visited 19 Branch Regions 4 Pre-discovered Areas 12 | . 2 1 4 . 1 . 3 . . . 1 . . . . . . . . Known Exits Taken 8 | . . 1 1 . 1 1 1 . 1 . . 1 . 1 . . . . . Unknown Exits Taken 5 | 1 1 . . 1 . . . . . . 1 . . . . 1 . . . Scrap Searched 4 | . . 2 . 1 . 1 . . . . . . . . . . . . . Spaces Dug 25 | . 6 . 5 . . . . . . 1 . . 5 . . . 8 . . Terrain Destroyed 763 | . 61 19 49 188 . 70 52 . . 1 80 3 5 . . 25 210 . . Melee 25 | . 6 . 5 . . . . . . 1 . . 5 . . . 8 . . Projectile 54 | . . . . . . . 52 . . . . . . . . . 2 . . AOE 684 | . 55 19 44 188 . 70 . . . . 80 3 . . . 25 200 . . Terrain Rammed . | . . . . . . . . . . . . . . . . . . . . Walls Destroyed . | . . . . . . . . . . . . . . . . . . . . Machines Disabled . | . . . . . . . . . . . . . . . . . . . . Actions | -11 -10 -10 -9 -9 -9 -8 -8 -8 -7 -7 -6 -5 -5 -5 -5 -5 -4 -4 -4 --------- Run | Yrd Mat Min Mat Min Exi Min Mat Gar Fac Gar Fac Fac Gar Fac Gar Fac Fac Was Fac Total 20675 | 500 1418 642 2796 446 753 472 2255 2187 914 1918 735 478 1790 76 1698 374 873 91 259 Wait 3521 | 169 342 28 609 100 . 51 896 325 164 72 228 38 218 19 101 68 91 2 . Move 15426 | 287 997 602 2007 316 738 409 1263 1631 673 1540 460 380 1308 55 1437 281 698 89 255 Hop 2 | . . . . . . . . . . . . . . . . . 2 . . Pick Up 176 | 11 11 2 15 . 2 . 13 13 3 35 2 6 28 1 21 5 5 . 3 Fast Attach 86 | 6 3 . 7 1 2 1 4 5 9 20 4 5 3 . 10 . 5 . 1 Attach 79 | 2 . . 3 2 3 1 3 5 10 5 5 3 14 . 6 2 15 . . Detach 45 | 1 1 . 3 . 4 1 . 3 8 10 1 1 1 . 7 . 4 . . Swap 113 | . 11 1 31 6 . 1 7 2 4 13 3 . 14 . 16 2 2 . . Drop 174 | 3 7 2 32 . 4 . 18 17 5 40 . . 14 1 23 5 3 . . Fire 720 | 21 36 7 80 21 . 8 50 76 37 152 26 16 105 . 35 11 39 . . Melee 109 | . 10 . 8 . . . . 27 1 6 1 . 9 . 39 . 8 . . Ram 1 | . . . 1 . . . . . . . . . . . . . . . . Kick 1 | . . . . . . . 1 . . . . . . . . . . . . Crush 34 | . . . . . . . . . . . 5 29 . . . . . . . Escape Stasis 56 | . . . . . . . . 30 . 22 . . 4 . . . . . . Rewire 132 | . . . . . . . . 53 . 3 . . 72 . 3 . 1 . . Trap . | . . . . . . . . . . . . . . . . . . . . Miscellaneous . | . . . . . . . . . . . . . . . . . . . . Route ------- -11/Scrapyard -10/Materials (discovered 6 exits: *Mat x3 / [*Min x2] / *Sub) -10/Mines (discovered 3 exits: *Mat x2 / Sub) -9/Materials (discovered 6 exits: *Mat x3 / *Min x2 / *Sto) -9/Mines (discovered 3 exits: *Mat x2 / *Exi) -9/Exiles -8/Mines -8/Materials (discovered 4 exits: *Fac x3 / Gar) -8/Garrison (discovered 3 exits: *Fac x3) -7/Factory (discovered 3 exits: *Fac x2 / Gar) -7/Garrison (discovered 3 exits: *Fac x3) -6/Factory (discovered 5 exits: *Fac / Low x2 / Ext x2) -5/Factory -5/Garrison (discovered 3 exits: *Fac x3) -5/Factory -5/Garrison (discovered 3 exits: *Fac x3) -5/Factory -4/Factory (discovered 3 exits: Upp x2 / Arm) -4/Waste -4/Factory History --------- Turn | Location | Event 28 | -11/Scrapyard | Discovered new exit (range 16) 518 | -11/Scrapyard | Entered Materials 538 | -10/Materials | Build established: Mutant 568 | -10/Materials | Discovered new exit (range 13) 611 | -10/Materials | Discovered new exit (range 11) 680 | -10/Materials | Discovered new exit (range 14) 760 | -10/Materials | Discovered new exit (range 14) 1423 | -10/Materials | Discovered new exit (range 8) 1437 | -10/Materials | Discovered new exit (range 14) 1462 | -10/Materials | Loaded intel: 18 trap records 1514 | -10/Materials | Repaired Lgt. Treads 1535 | -10/Materials | Learned location of 2 exits from Materials 1645 | -10/Materials | Learned location of 2 exits from Mines 1684 | -10/Materials | Loaded intel: 2 recycling unit locations 1713 | -10/Materials | Learned location of 3 exits from Materials 1734 | -10/Materials | Learned Materials trap positions 1763 | -10/Materials | Learned 2 Storage zone layouts 1801 | -10/Materials | Learned Storage security intel 1848 | -10/Materials | Learned location of 1 exit from Recycling 2168 | -10/Materials | Entered Mines 2169 | -10/Mines | Identified exit to Subcaves 2169 | -10/Mines | Identified exit to Materials 2225 | -10/Mines | Learned Materials emergency access door positions 2238 | -10/Mines | Found a damaged Exp. Sensor Array with a note attached 2241 | -10/Mines | Found Prototype Device 2274 | -10/Mines | Discovered exit to Materials (range 8) 2543 | -10/Mines | Escorted by a lone wolf Derelict 2604 | -10/Mines | Learned location of Storage (-9) 2853 | -10/Mines | Found a hidden stash of uninstalled traps 2938 | -10/Mines | Entered Materials 2938 | -9/Materials | Accompanied by 1 ally 2938 | -9/Materials | Evolved 2 slots: Propulsion x1, Utility x1 2939 | -9/Materials | Identified exit to Mines 2939 | -9/Materials | Identified exit to Materials 2939 | -9/Materials | Identified exit to Storage 2940 | -9/Materials | Loaded intel: 13 trap records 3827 | -9/Materials | Discovered exit to Materials (range 15) 3872 | -9/Materials | Build established: Scavenger-Mutant 4938 | -9/Materials | First assault squad dispatched 5383 | -9/Materials | Learned Storage stockpile data 5449 | -9/Materials | Learned Storage stockpile data 5486 | -9/Materials | Learned Storage trap positions 5715 | -9/Materials | Identified Exp. Sensor Array 6402 | -9/Materials | Repaired Broken Exp. Sensor Array 6454 | -9/Materials | Repaired Adv. Beam Cannon 6465 | -9/Materials | Build established: Mutant 6481 | -9/Materials | Repaired Lgt. Treads 6633 | -9/Materials | Entered Mines 6634 | -9/Mines | Assembled infested the area 6659 | -9/Mines | Met a Derelict bent on vengeance 6701 | -9/Mines | Lost 3 parts (1n1u1w) 6824 | -9/Mines | Discovered exit to Materials (range 9) 6831 | -9/Mines | Discovered exit to Materials (range 10) 7063 | -9/Mines | Deemed a non-threat by the Exiles lab entrance 7063 | -9/Mines | Discovered new exit (range 5) 7181 | -9/Mines | Entered Exiles 7210 | -9/Exiles | Met 8R-AWN 7231 | -9/Exiles | Met EX-HEX 7265 | -9/Exiles | Met EX-BIN 7282 | -9/Exiles | Aligned with FarCom system 7283 | -9/Exiles | Given EX-Vault access code 7345 | -9/Exiles | Opened EX-Vault 7376 | -9/Exiles | Warned to stay clear of 0b10 Research branches 7413 | -9/Exiles | Met EX-DEC 7421 | -9/Exiles | Learned location of Zion (-6) 7487 | -9/Exiles | Visited The Gauntlet 7796 | -9/Exiles | Discovered new exit (range 11) 7913 | -9/Exiles | Found Potential Leg 7916 | -9/Exiles | Found Potential Leg 7922 | -9/Exiles | Found Field Lobotomy Kit 7930 | -9/Exiles | Found XL Autogun Array 8040 | -9/Exiles | Identified exit to Mines 8041 | -9/Exiles | Stole three prototypes: Potential Leg, XL Autogun Array, Field Lobotomy Kit 8041 | -9/Exiles | Entered Mines 8471 | -8/Mines | Discovered exit to Materials (range 5) 8488 | -8/Mines | Entered Materials 8488 | -8/Materials | Evolved 2 slots: Weapon x2 9067 | -8/Materials | Build established: Tank 9247 | -8/Materials | Discovered new exit (range 16) 10115 | -8/Materials | Discovered new exit (range 14) 10311 | -8/Materials | Learned Factory trap positions 10389 | -8/Materials | Learned Recycling recycling unit intel 10414 | -8/Materials | Identified exit to Factory 10447 | -8/Materials | Learned location of 1 exit from Extension 10489 | -8/Materials | Learned Storage emergency access door positions 10541 | -8/Materials | Learned 2 Lower Caves zone layouts 10594 | -8/Materials | Identified exit to Garrison 10604 | -8/Materials | Entered Garrison 10644 | -8/Garrison | Installed Relay Interface Framework 10770 | -8/Garrison | Triggered checkpoint 10807 | -8/Garrison | Garrison Relay disabled 10896 | -8/Garrison | Triggered checkpoint 11294 | -8/Garrison | Garrison Relay disabled 11306 | -8/Garrison | Triggered checkpoint 11363 | -8/Garrison | Discovered exit to Factory (range 12) 11550 | -8/Garrison | Triggered checkpoint 11580 | -8/Garrison | Triggered checkpoint 11650 | -8/Garrison | Triggered checkpoint 11713 | -8/Garrison | Garrison Relay disabled 11741 | -8/Garrison | Discovered exit to Factory (range 14) 11847 | -8/Garrison | Discovered exit to Factory (range 9) 12004 | -8/Garrison | Triggered checkpoint 12099 | -8/Garrison | Garrison Relay disabled 12099 | -8/Garrison | Garrison Relay disabled 12100 | -8/Garrison | Garrison Relay disabled 12100 | -8/Garrison | Garrison Relay disabled 12650 | -8/Garrison | Build established: Bothacker-Tank 13569 | -8/Garrison | Entered Factory 13569 | -7/Factory | Accompanied by 2 allies 13569 | -7/Factory | Evolved 2 slots: Propulsion x1, Utility x1 13570 | -7/Factory | Loaded intel: 110 trap records 13571 | -7/Factory | FarCom data flow suspended 14337 | -7/Factory | Build established: Bothacker-Skirmisher 14369 | -7/Factory | First assault squad dispatched 14911 | -7/Factory | Build established: Bothacker-Gunner 14917 | -7/Factory | Discovered new exit (range 9) 14932 | -7/Factory | Discovered new exit (range 10) 15000 | -7/Factory | Garrison activated, responded to threat 15059 | -7/Factory | Identified exit to Garrison 15070 | -7/Factory | Entered Garrison 15139 | -7/Garrison | Triggered checkpoint 15197 | -7/Garrison | Lost 3 allies 15281 | -7/Garrison | Discovered new exit (range 12) 15305 | -7/Garrison | Learned Factory security intel 15305 | -7/Garrison | System Shield fried by hacking feedback 15342 | -7/Garrison | Garrison Relay disabled 15485 | -7/Garrison | Discovered new exit (range 10) 15554 | -7/Garrison | P-60 Hacker assimilated allied Guardian 4c 15674 | -7/Garrison | Triggered checkpoint 15711 | -7/Garrison | Garrison Relay disabled 15896 | -7/Garrison | Triggered checkpoint 15938 | -7/Garrison | Build established: Bothacker-Tank 16028 | -7/Garrison | Expanded RIF knowledge: Structural Interface 16575 | -7/Garrison | Garrison Relay disabled 16610 | -7/Garrison | Triggered checkpoint 16788 | -7/Garrison | Discovered new exit (range 2) 16964 | -7/Garrison | Build established: Bothacker-Gunner 17230 | -7/Garrison | Triggered checkpoint 17255 | -7/Garrison | Garrison Relay disabled 18297 | -7/Garrison | Build established: Bothacker-Tank 18698 | -7/Garrison | Entered Factory 18698 | -6/Factory | Accompanied by 3 allies 18698 | -6/Factory | Evolved 2 slots: Propulsion x2 18823 | -6/Factory | Repaired Imp. Heavy Treads 18926 | -6/Factory | Build established: Bothacker-Mutant 19048 | -6/Factory | First assault squad dispatched 19076 | -6/Factory | Repaired Imp. Heavy Treads 19176 | -6/Factory | Identified exit to Lower Caves 19176 | -6/Factory | Identified exit to Extension 19428 | -6/Factory | Build established: Bothacker-Tank 19447 | -6/Factory | Repaired Imp. Heavy Treads 19507 | -6/Factory | Lost 3 parts (3w) 19508 | -6/Factory | Lost 3 allies 19646 | -6/Factory | Discovered new exit (range 10) 19647 | -6/Factory | Assimilated H-66 Slayer with FLK Orb 19672 | -6/Factory | Assimilated H-66 Slayer with FLK Orb 19745 | -6/Factory | Entered another Factory area 19745 | -5/Factory | Evolved 2 slots: Utility x2 19760 | -5/Factory | Build established: Bothacker-Mutant 20177 | -5/Factory | Assimilated H-66 Slayer with FLK Orb 20189 | -5/Factory | Assimilated H-66 Slayer with FLK Orb 20237 | -5/Factory | Fabricated Exp. Sensor Array? 20494 | -5/Factory | Identified exit to Garrison 20494 | -5/Factory | Entered Garrison 20494 | -5/Garrison | Accompanied by 1 ally 20568 | -5/Garrison | Spotted B-75 Beast 20600 | -5/Garrison | Assimilated B-75 Beast with FLK Orb 20634 | -5/Garrison | Build established: Bothacker-Tank 20645 | -5/Garrison | Found Relay Coupler [Proto] 20647 | -5/Garrison | Found Relay Coupler [Proto] 20650 | -5/Garrison | Found Relay Coupler [Proto] 20652 | -5/Garrison | Found Relay Coupler [Proto] 20699 | -5/Garrison | Lost 3 parts (3n) 20804 | -5/Garrison | Triggered checkpoint 20804 | -5/Garrison | Spotted B-75 Beast 20837 | -5/Garrison | Allies destroyed B-75 Beast 20988 | -5/Garrison | Triggered checkpoint 21039 | -5/Garrison | Discovered new exit (range 14) 21257 | -5/Garrison | Garrison Relay disabled 21410 | -5/Garrison | Triggered checkpoint 21448 | -5/Garrison | Garrison Relay disabled 21716 | -5/Garrison | Triggered checkpoint 21802 | -5/Garrison | Garrison Relay disabled 21818 | -5/Garrison | Triggered checkpoint 21969 | -5/Garrison | Discovered new exit (range 2) 22081 | -5/Garrison | Spotted B-90 Cyclops 22095 | -5/Garrison | Hijacked Cyclops 6a control node with streamctrl_high 22141 | -5/Garrison | Destroyed Cyclops 6a 22181 | -5/Garrison | Rewired B-90 Cyclops 22239 | -5/Garrison | Rewired B-75 Beast 22340 | -5/Garrison | Triggered checkpoint 22425 | -5/Garrison | Garrison Relay disabled 22440 | -5/Garrison | Triggered checkpoint 22510 | -5/Garrison | Discovered new exit (range 15) 22760 | -5/Garrison | Triggered checkpoint 22809 | -5/Garrison | Garrison Relay disabled 22900 | -5/Garrison | Triggered checkpoint 22937 | -5/Garrison | Garrison Relay disabled 23315 | -5/Garrison | Entered Factory 23315 | -5/Factory | Accompanied by 3 allies 23398 | -5/Factory | Identified exit to Garrison 23425 | -5/Factory | Entered Garrison 23425 | -5/Garrison | Accompanied by 3 allies 23533 | -5/Garrison | Triggered checkpoint 23568 | -5/Garrison | Garrison Relay disabled 23622 | -5/Garrison | Garrison Relay disabled 23715 | -5/Garrison | Triggered checkpoint 23847 | -5/Garrison | Lost 5 allies 23955 | -5/Garrison | Expanded RIF knowledge: Coupler Efficiency 23966 | -5/Garrison | Discovered new exit (range 12) 24035 | -5/Garrison | Triggered checkpoint 24098 | -5/Garrison | Learned Factory security intel 24113 | -5/Garrison | Garrison Relay disabled 24128 | -5/Garrison | Discovered new exit (range 7) 24128 | -5/Garrison | Discovered new exit (range 59) 24128 | -5/Garrison | Discovered new exit (range 77) 24241 | -5/Garrison | Triggered checkpoint 24335 | -5/Garrison | Triggered checkpoint 24484 | -5/Garrison | Garrison Relay disabled 24607 | -5/Garrison | Spotted Executioner 24618 | -5/Garrison | Assimilated Executioner with formatsys_high 25358 | -5/Garrison | Garrison Relay disabled 25589 | -5/Garrison | Build established: Bothacker-Mutant 26087 | -5/Garrison | Entered Factory 26087 | -5/Factory | Accompanied by 4 allies 26254 | -5/Factory | Build established: Bothacker-Tank 26321 | -5/Factory | Found Fusion Bomb Launcher 26325 | -5/Factory | Found Fusion Bomb Launcher 26421 | -5/Factory | Lost 3 allies 26543 | -5/Factory | Discovered new exit (range 8) 26624 | -5/Factory | Entered another Factory area 26624 | -4/Factory | Evolved 2 slots: Utility x2 26911 | -4/Factory | Build established: Bothacker-Skirmisher 27299 | -4/Factory | Lost 9 parts (1p3n1u4w) 27310 | -4/Factory | Released all parts (13) 27374 | -4/Factory | First assault squad dispatched 27403 | -4/Factory | Core integrity fell below 50% 27492 | -4/Factory | Spotted B-86 Titan 27493 | -4/Factory | Identified exit to Upper Caves 27493 | -4/Factory | Identified exit to Armory 27528 | -4/Factory | Manually triggered Chute Trap 27528 | -4/Factory | Sucked down chute 27528 | -4/Factory | Entered Waste 27529 | -4/Waste | Met a frightened Derelict 27532 | -4/Waste | Spotted C-40 Crusher 27539 | -4/Waste | Spotted C-40 Crusher 27543 | -4/Waste | EMP discharged 27544 | -4/Waste | Spotted C-40 Crusher 27553 | -4/Waste | Spotted C-40 Crusher 27567 | -4/Waste | Spotted C-40 Crusher 27567 | -4/Waste | Discovered new exit (range 12) 27580 | -4/Waste | Entered Factory 27625 | -4/Factory | Build established: Mutant 27687 | -4/Factory | Hacking Suite fried by hacking feedback 27692 | -4/Factory | Spotted B-86 Titan 27711 | -4/Factory | Core integrity fell below 20% 27726 | -4/Factory | Destroyed by H-71 Marshal with Heavy Mass Driver Last Messages --------------- 27687_ Connecting with Terminal... 27687_ Current location identified: Factory Feedback: Hacking Suite fried. 27687_ ALERT: Suspicious activity at Terminal F005. Dispatching Investigation squad. 27691_ System corrupted: Energy discharge (-43). 27698_ Lgt. Particle Reactor destroyed. 27706_ Antigrav System destroyed. 27711_ ALERT: Suspicious intruders detected, dispatching Cutter reinforcements to area. 27714_ O-16 Technician: "IFF HANDSHAKE FAILED. SECURING TERMINAL." 27715_ Antigrav System destroyed. 27718_ Knocked back. 27719_ ALERT: Hostiles spotted, dispatching reinforcements to Terminal F008. 27724_ Slug penetrates Wall. 27725_ System corrupted: Heat flow error (+166). 27725_ RIF reveals location of hidden door. 27725_ Imp. Antigrav System destroyed. Map ----- +----------------------------------------------------+ | #??# ####+#########?# #????????????????? | | #### # #?# #????????????????? | | # #?# #????????????????? | | ###### # #?# #????????????????? | | ?????# # #?# #????????????????? | | ?????# # #?# #????????????????? | | ?????# # ### #????????????????? | | ?????# + + #????????????????? | | ?????# # ### #????????????????? | | ?????# # #?# #????????????????? | | ?????# # #?# #????????????????? | | ?????# # [ #?# #????????????????? | | ?????# # #?# #????????????????? | | ?????# ################ #????????????????? | | ?????# #????????# +????????????????? | | ?????+ #????????# ##### #????????????????? | | ?????# ########## #???# #????????????????? | | ?????# #???##### #????????????????? | | ###### ##########+????????# #????????????????? | | #??????????????????# #????????????????? | | #??????????????????# ##???????????????? | | #??????????????????#%"##??????????????? | | #????????????????### #;#??????????????? | | #??????????????### s ############+??? | | ########??????##+######;;s H ?? | | #?????????????# o @ ss! ?? | | #####?????????????# "T"% # ## ?? | | ??????????????????# # ## ############ ??? | | ??????????????????# ?#+####+###??????????????? | | ??????????????????# ????? ???????????????? | | ??????????????????# ????! #?????????????? | | ??????????????????#####??#! #?????????????? | | ?????????????????????????# #?????????????? | | ?????????????????????????# #?????????????? | | ?????????????????????????# #?????????????? | | ?????????????????????????# #?????????????? | | ?????????????????????????# ! #?????????????? | | ?????????????????????????###########?????????????? | | ?????????????????????????????????????????????????? | | ?????????????????????????????????????????????????? | | ?????????????????????????????????????????????????? | | ?????????????????????????????????????????????????? | | ?????????????????????????????????????????????????? | | ?????????????????????????????????????????????????? | | ?????????????????????????????????????????????????? | | ?????????????????????????????????????????????????? | | ?????????????????????????????????????????????????? | | ?????????????????????????????????????????????????? | | ?????????????????????????????????????????????????? | | ?????????????????????????????????????????????????? | +----------------------------------------------------+ Best States ------------- Heat Dissipation 53 Coolant Potential 65 Energy Generation 23 Energy Capacity 515 Matter Stores 500 Matter Capacity 500 Sight Range 16 Robot Scan Range 20 Terrain Scan Density 10 Additional Mass Support 12 Armor Coverage 375 Resistance: KI 20 Resistance: TH 15 Evasion (%) 61 Recoil Reduction 6 Offensive Hacking 14 Defensive Hacking 10 Relay Coupler Types 4 Relay Coupler Value 163 Item Schematics ----------------- Exp. Sensor Array | -9/Materials | Scanalyzed Imp. Signal Interpreter | -8/Materials | Scanalyzed Imp. Heavy Treads | -5/Factory | Scanalyzed Impulse Thruster Array | -5/Factory | Scanalyzed Robot Schematics ------------------ None Fabricated ------------ Exp. Sensor Array | x1 | -5/Factory Repaired ---------- Lgt. Treads | 54% | -10/Materials Exp. Sensor Array | 62% | -9/Materials | Broken Adv. Beam Cannon | 60% | -9/Materials Lgt. Treads | 68% | -9/Materials Imp. Heavy Treads | 72% | -6/Factory Imp. Heavy Treads | 61% | -6/Factory Imp. Heavy Treads | 66% | -6/Factory Alien Tech Used ----------------- None Achievements -------------- None Challenges ------------ None Game ------ Seed KineticDisposableBeam Manual? 0 Play Time 04:19:38 Cumulative 116.4 hours Start 2025.06.04 @ 10:00:55 End 2025.06.05 @ 01:27:37 Sessions 7 Manual Loads 0 Difficulty Rogue Special Mode None Game No. 73 Rogue 73 Adventurer 0 Explorer 0 Win Type - Total 1 Types 1/0/0/0/0/0/0/0/0/0 Lore% 32 Gallery% 47 Achievement% 51 Wizard Run 0 Options --------- Layout 1 ASCII 0 Keyboard 1 Movement Vi Keybinds 1 Fullscreen 1 Font 32/SmallcapsGlow Map View 50x35 Zoom Use 0% Tactical HUD 1 Map Filters NONE Filters NONE Steam X RUN: d39d0819-228f-45a5-ab78-af996094911f